{"text_format":"1","workbook":"xlsx","n_sheets":2,"sheets":["Instruktioner og konfiguration","sep12"],"not_rendered":{"charts":0,"images":0,"macros":1,"external_links":0,"defined_names":13,"comments":0,"pivot_tables":0},"unopened":[],"bounds":{"document_bytes":16777216,"sheet_cells":100000,"rows_first":2000,"rows_last":500,"rows_between":2000,"halvings":0,"cell_chars":16384,"cell_head_chars":4096},"cells_cut":0,"cells_raw":0,"read":"whole","date_system":"1900"}

{"sheet":"Instruktioner og konfiguration","index":0,"n_rows":23,"n_cols":9,"rows_kept":23,"cut":false,"hidden":false,"merged":[[3,2,3,4],[5,2,5,4],[7,2,7,4],[9,2,9,4],[3,7,3,8],[5,7,5,8],[7,7,7,8],[9,7,9,8],[11,7,11,8],[4,7,4,8],[6,7,6,8],[8,7,8,8],[10,7,10,8]]}
[]
[null,"Instruktioner og konfiguration"]
[]
[null,1,"Skriv navnene på de klasser, du vil spore i denne tidsplan, i tabellen Klasser herunder.",null,null,null,5,"Angiv en startdato for din tidsplan i celle A5."]
[]
[null,2,"Du kan også tilpasse eksempelaktiviteterne, så de passer til dine behov, i tabellen Aktiviteter. ",null,null,null,6,"I række 4, brug rullelisten til at føje klasserne til tidsplanen. "]
[]
[null,3,"I celle I14 skal du angive det antal rækker, du vil bruge, hjemmearbejdet hver dag.",null,null,null,7,"Under hver klasse skal du tilføje dine opgaver i kolonnnen Opgaver."]
[]
[null,4,"Fuldfør trin 5-9 på et tidsplanark, f.eks. Sep 12.",null,null,null,8,"Vurder det antal timer, du skal bruge til hver opgave, i kolonnen til timer, der er angivet med et urikon."]
[]
[null,null,null,null,null,null,9,"Når din opgave er færdig, skal du dobbeltklikke på kolonnen for udført, der er angivet med en markering, ud for opgaven."]
[]
[null,null,"Klasser",null,"Aktiviteter",null,null,"Antal rækker for hver dag:",5]
[null,null,"Matematik 101",null,"Diskussion"]
[null,null,"Engelsk 105",null,"Laboratorium"]
[null,null,"Fransk 103",null,"Foredrag"]
[null,null,"Naturvidenskab 101",null,"Quiz"]
[null,null,"Oversigt 101",null,"Læsning"]
[null,null,null,null,"Refleksion"]
[null,null,null,null,"Undersøgelsesrapport"]
[null,null,null,null,"Gennemgang af opgaver"]
[null,null,null,null,"Undersøgelse"]

{"sheet":"sep12","index":1,"n_rows":103,"n_cols":24,"rows_kept":103,"cut":false,"hidden":false,"merged":[]}
[]
[null,"Lektier"]
[]
[null,"Angiv\nStartdato","I alt"," Klasse:",null,"Matematik 101"," Klasse:",null,"Engelsk 105"," Klasse:",null,"Fransk 103"," Klasse:",null,"Naturvidenskab 101"," Klasse:",null,null," Klasse:",null,null," Klasse:"]
[null,"2011-09-12",null,null,null,"OPGAVE",null,null,"OPGAVE",null,null,"OPGAVE",null,null,"OPGAVE",null,null,"OPGAVE",null,null,"OPGAVE",null,null,"OPGAVE"]
[]
[null,{"$f":"TidsplanDag","v":"2011-09-12"},{"$f":"AntalDagligeTimerIAlt","v":6.5},1,1.5,"Læsning",1,2,"Undersøgelse",null,1,"Læsning",1,1,"Quiz"]
[null,{"$f":"TidsplanDag","v":""},{"$f":"AntalDagligeTimerIAlt","v":""},1,1,"Gennemgang af opgaver"]
[null,{"$f":"TidsplanDag","v":""},{"$f":"AntalDagligeTimerIAlt","v":""}]
[null,{"$f":"TidsplanDag","v":""},{"$f":"AntalDagligeTimerIAlt","v":""}]
[null,{"$f":"TidsplanDag","v":""},{"$f":"AntalDagligeTimerIAlt","v":""}]
[null,{"$f":"TidsplanDag","v":"2011-09-13"},{"$f":"AntalDagligeTimerIAlt","v":0}]
[null,{"$f":"TidsplanDag","v":""},{"$f":"AntalDagligeTimerIAlt","v":""}]
[null,{"$f":"TidsplanDag","v":""},{"$f":"AntalDagligeTimerIAlt","v":""}]
[null,{"$f":"TidsplanDag","v":""},{"$f":"AntalDagligeTimerIAlt","v":""}]
[null,{"$f":"TidsplanDag","v":""},{"$f":"AntalDagligeTimerIAlt","v":""}]
[null,{"$f":"TidsplanDag","v":"2011-09-14"},{"$f":"AntalDagligeTimerIAlt","v":0}]
[null,{"$f":"TidsplanDag","v":""},{"$f":"AntalDagligeTimerIAlt","v":""}]
[null,{"$f":"TidsplanDag","v":""},{"$f":"AntalDagligeTimerIAlt","v":""}]
[null,{"$f":"TidsplanDag","v":""},{"$f":"AntalDagligeTimerIAlt","v":""}]
[null,{"$f":"TidsplanDag","v":""},{"$f":"AntalDagligeTimerIAlt","v":""}]
[null,{"$f":"TidsplanDag","v":"2011-09-15"},{"$f":"AntalDagligeTimerIAlt","v":0}]
[null,{"$f":"TidsplanDag","v":""},{"$f":"AntalDagligeTimerIAlt","v":""}]
[null,{"$f":"TidsplanDag","v":""},{"$f":"AntalDagligeTimerIAlt","v":""}]
[null,{"$f":"TidsplanDag","v":""},{"$f":"AntalDagligeTimerIAlt","v":""}]
[null,{"$f":"TidsplanDag","v":""},{"$f":"AntalDagligeTimerIAlt","v":""}]
[null,{"$f":"TidsplanDag","v":"2011-09-16"},{"$f":"AntalDagligeTimerIAlt","v":0}]
[null,{"$f":"TidsplanDag","v":""},{"$f":"AntalDagligeTimerIAlt","v":""}]
[null,{"$f":"TidsplanDag","v":""},{"$f":"AntalDagligeTimerIAlt","v":""}]
[null,{"$f":"TidsplanDag","v":""},{"$f":"AntalDagligeTimerIAlt","v":""}]
[null,{"$f":"TidsplanDag","v":""},{"$f":"AntalDagligeTimerIAlt","v":""}]
[null,{"$f":"TidsplanDag","v":"2011-09-17"},{"$f":"AntalDagligeTimerIAlt","v":0}]
[null,{"$f":"TidsplanDag","v":""},{"$f":"AntalDagligeTimerIAlt","v":""}]
[null,{"$f":"TidsplanDag","v":""},{"$f":"AntalDagligeTimerIAlt","v":""}]
[null,{"$f":"TidsplanDag","v":""},{"$f":"AntalDagligeTimerIAlt","v":""}]
[null,{"$f":"TidsplanDag","v":""},{"$f":"AntalDagligeTimerIAlt","v":""}]
[null,{"$f":"TidsplanDag","v":"2011-09-18"},{"$f":"AntalDagligeTimerIAlt","v":0}]
[null,{"$f":"TidsplanDag","v":""},{"$f":"AntalDagligeTimerIAlt","v":""}]
[null,{"$f":"TidsplanDag","v":""},{"$f":"AntalDagligeTimerIAlt","v":""}]
[null,{"$f":"TidsplanDag","v":""},{"$f":"AntalDagligeTimerIAlt","v":""}]
[null,{"$f":"TidsplanDag","v":""},{"$f":"AntalDagligeTimerIAlt","v":""}]
[null,{"$f":"TidsplanDag","v":""},{"$f":"AntalDagligeTimerIAlt","v":""}]
[null,{"$f":"TidsplanDag","v":""},{"$f":"AntalDagligeTimerIAlt","v":""}]
[null,{"$f":"TidsplanDag","v":""},{"$f":"AntalDagligeTimerIAlt","v":""}]
[null,{"$f":"TidsplanDag","v":""},{"$f":"AntalDagligeTimerIAlt","v":""}]
[null,{"$f":"TidsplanDag","v":""},{"$f":"AntalDagligeTimerIAlt","v":""}]
[null,{"$f":"TidsplanDag","v":""},{"$f":"AntalDagligeTimerIAlt","v":""}]
[null,{"$f":"TidsplanDag","v":""},{"$f":"AntalDagligeTimerIAlt","v":""}]
[null,{"$f":"TidsplanDag","v":""},{"$f":"AntalDagligeTimerIAlt","v":""}]
[null,{"$f":"TidsplanDag","v":""},{"$f":"AntalDagligeTimerIAlt","v":""}]
[null,{"$f":"TidsplanDag","v":""},{"$f":"AntalDagligeTimerIAlt","v":""}]
[null,{"$f":"TidsplanDag","v":""},{"$f":"AntalDagligeTimerIAlt","v":""}]
[null,{"$f":"TidsplanDag","v":""},{"$f":"AntalDagligeTimerIAlt","v":""}]
[null,{"$f":"TidsplanDag","v":""},{"$f":"AntalDagligeTimerIAlt","v":""}]
[null,{"$f":"TidsplanDag","v":""},{"$f":"AntalDagligeTimerIAlt","v":""}]
[null,{"$f":"TidsplanDag","v":""},{"$f":"AntalDagligeTimerIAlt","v":""}]
[null,{"$f":"TidsplanDag","v":""},{"$f":"AntalDagligeTimerIAlt","v":""}]
[null,{"$f":"TidsplanDag","v":""},{"$f":"AntalDagligeTimerIAlt","v":""}]
[null,{"$f":"TidsplanDag","v":""},{"$f":"AntalDagligeTimerIAlt","v":""}]
[null,{"$f":"TidsplanDag","v":""},{"$f":"AntalDagligeTimerIAlt","v":""}]
[null,{"$f":"TidsplanDag","v":""},{"$f":"AntalDagligeTimerIAlt","v":""}]
[null,{"$f":"TidsplanDag","v":""},{"$f":"AntalDagligeTimerIAlt","v":""}]
[null,{"$f":"TidsplanDag","v":""},{"$f":"AntalDagligeTimerIAlt","v":""}]
[null,{"$f":"TidsplanDag","v":""},{"$f":"AntalDagligeTimerIAlt","v":""}]
[null,{"$f":"TidsplanDag","v":""},{"$f":"AntalDagligeTimerIAlt","v":""}]
[null,{"$f":"TidsplanDag","v":""},{"$f":"AntalDagligeTimerIAlt","v":""}]
[null,{"$f":"TidsplanDag","v":""},{"$f":"AntalDagligeTimerIAlt","v":""}]
[null,{"$f":"TidsplanDag","v":""},{"$f":"AntalDagligeTimerIAlt","v":""}]
[null,{"$f":"TidsplanDag","v":""},{"$f":"AntalDagligeTimerIAlt","v":""}]
[null,{"$f":"TidsplanDag","v":""},{"$f":"AntalDagligeTimerIAlt","v":""}]
[null,{"$f":"TidsplanDag","v":""},{"$f":"AntalDagligeTimerIAlt","v":""}]
[null,{"$f":"TidsplanDag","v":""},{"$f":"AntalDagligeTimerIAlt","v":""}]
[null,{"$f":"TidsplanDag","v":""},{"$f":"AntalDagligeTimerIAlt","v":""}]
[null,{"$f":"TidsplanDag","v":""},{"$f":"AntalDagligeTimerIAlt","v":""}]
[null,{"$f":"TidsplanDag","v":""},{"$f":"AntalDagligeTimerIAlt","v":""}]
[null,{"$f":"TidsplanDag","v":""},{"$f":"AntalDagligeTimerIAlt","v":""}]
[null,{"$f":"TidsplanDag","v":""},{"$f":"AntalDagligeTimerIAlt","v":""}]
[null,{"$f":"TidsplanDag","v":""},{"$f":"AntalDagligeTimerIAlt","v":""}]
[null,{"$f":"TidsplanDag","v":""},{"$f":"AntalDagligeTimerIAlt","v":""}]
[null,{"$f":"TidsplanDag","v":""},{"$f":"AntalDagligeTimerIAlt","v":""}]
[null,{"$f":"TidsplanDag","v":""},{"$f":"AntalDagligeTimerIAlt","v":""}]
[null,{"$f":"TidsplanDag","v":""},{"$f":"AntalDagligeTimerIAlt","v":""}]
[null,{"$f":"TidsplanDag","v":""},{"$f":"AntalDagligeTimerIAlt","v":""}]
[null,{"$f":"TidsplanDag","v":""},{"$f":"AntalDagligeTimerIAlt","v":""}]
[null,{"$f":"TidsplanDag","v":""},{"$f":"AntalDagligeTimerIAlt","v":""}]
[null,{"$f":"TidsplanDag","v":""},{"$f":"AntalDagligeTimerIAlt","v":""}]
[null,{"$f":"TidsplanDag","v":""},{"$f":"AntalDagligeTimerIAlt","v":""}]
[null,{"$f":"TidsplanDag","v":""},{"$f":"AntalDagligeTimerIAlt","v":""}]
[null,{"$f":"TidsplanDag","v":""},{"$f":"AntalDagligeTimerIAlt","v":""}]
[null,{"$f":"TidsplanDag","v":""},{"$f":"AntalDagligeTimerIAlt","v":""}]
[null,{"$f":"TidsplanDag","v":""},{"$f":"AntalDagligeTimerIAlt","v":""}]
[null,{"$f":"TidsplanDag","v":""},{"$f":"AntalDagligeTimerIAlt","v":""}]
[null,{"$f":"TidsplanDag","v":""},{"$f":"AntalDagligeTimerIAlt","v":""}]
[null,{"$f":"TidsplanDag","v":""},{"$f":"AntalDagligeTimerIAlt","v":""}]
[null,{"$f":"TidsplanDag","v":""},{"$f":"AntalDagligeTimerIAlt","v":""}]
[null,{"$f":"TidsplanDag","v":""},{"$f":"AntalDagligeTimerIAlt","v":""}]
[null,{"$f":"TidsplanDag","v":""},{"$f":"AntalDagligeTimerIAlt","v":""}]
[null,{"$f":"TidsplanDag","v":""},{"$f":"AntalDagligeTimerIAlt","v":""}]
[null,{"$f":"TidsplanDag","v":""},{"$f":"AntalDagligeTimerIAlt","v":""}]
[null,{"$f":"TidsplanDag","v":""},{"$f":"AntalDagligeTimerIAlt","v":""}]
[null,{"$f":"TidsplanDag","v":""},{"$f":"AntalDagligeTimerIAlt","v":""}]
[null,{"$f":"TidsplanDag","v":""},{"$f":"AntalDagligeTimerIAlt","v":""}]
[null,{"$f":"TidsplanDag","v":""},{"$f":"AntalDagligeTimerIAlt","v":""}]